fUSD/lending_fUSD_20251123
["ID","MTS","AMOUNT","RATE_DAILY","PERIOD"]
[394691151,1763899831717,-150.0,0.00015288,2]
[394691152,1763899831726,-150.0,0.00015288,2]
[394691153,1763899831734,-150.0,0.00015288,2]
[394691154,1763899831743,-150.0,0.00015288,2]
[394691155,1763899831752,-152.75012698,0.00015288,2]
[394691156,1763899831761,-150.0,0.00015288,2]
[394691157,1763899831770,-150.0,0.00015288,2]
[394691158,1763899831779,-180.42895222,0.00015481,2]
[394691159,1763899831788,-223.762,0.00015581,2]
[394691160,1763899831797,-4078.499,0.00015581,2]
[394691161,1763899831806,-198.33083023,0.00015698,2]
[394691162,1763899831815,-300.0,0.00015698,2]
[394691163,1763899831824,-54791.68607043,0.00015699,2]
[394691164,1763899831835,-22152.41199048,0.00015699,2]
[394691165,1763899831846,-19178.05053909,0.00015699,2]
[394691166,1763899831855,-11463.45,0.00015731,2]
[394691167,1763899831863,-610.0,0.00015731,2]
[394691168,1763899831872,-34102.0491,0.00015799,2]
[394691169,1763899831881,-1176.3477,0.00015799,2]
[394691170,1763899831890,-168.43467139,0.00015799,2]
[394691171,1763899831899,-14478.7068477,0.00015799,2]
[394691172,1763899831908,-150.0,0.00015854,2]
[394691173,1763899831916,-2751.0,0.00015867,2]
[394691174,1763899831925,-776.50278841,0.00015897,2]
[394691175,1763899831934,-500.0,0.00015897,2]
[394691176,1763899831943,-500.0,0.00015897,2]
[394691177,1763899831951,-500.0,0.00015897,2]
[394691178,1763899831960,-500.0,0.00015897,2]
[394691179,1763899831969,-776.50278841,0.00015897,2]
[394691180,1763899831978,-500.0,0.00015897,2]
[394691181,1763899831987,-500.0,0.00015897,2]
[394691182,1763899831995,-500.0,0.00015897,2]
[394691183,1763899832004,-776.50278841,0.00015897,2]
[394691184,1763899832013,-500.0,0.00015897,2]
[394691185,1763899832023,-776.50278841,0.00015897,2]
[394691186,1763899832032,-500.0,0.00015897,2]
[394691187,1763899832041,-500.0,0.00015897,2]
[394691188,1763899832051,-500.0,0.00015897,2]
[394691189,1763899832060,-500.0,0.00015897,2]
[394691190,1763899832069,-776.50278841,0.00015897,2]
[394691191,1763899832079,-776.50278841,0.00015897,2]
[394691192,1763899832088,-500.0,0.00015897,2]
[394691193,1763899832097,-207.42264205,0.00015897,2]
[394691194,1763899832108,-776.50278841,0.00015897,2]
[394691196,1763899832117,-776.50278841,0.00015897,2]
[394691197,1763899832127,-169.62009663,0.00015897,2]
[394691198,1763899832136,-776.50278841,0.00015897,2]
[394691199,1763899832145,-776.50278841,0.00015897,2]
[394691200,1763899832155,-776.50278841,0.00015897,2]
[394691201,1763899832164,-277.62717844,0.00015897,2]
[394691202,1763899832173,-776.50278841,0.00015897,2]
[394691203,1763899832184,-776.50278841,0.00015897,2]
[394691204,1763899832194,-776.50278841,0.00015897,2]
[394691205,1763899832203,-776.50278841,0.00015897,2]
[394691206,1763899832212,-776.50278841,0.00015897,2]
[394691207,1763899832222,-776.50278841,0.00015897,2]
[394691208,1763899832231,-776.50278841,0.00015897,2]
[394691209,1763899832241,-776.50278841,0.00015897,2]
[394691210,1763899832250,-776.50278841,0.00015897,2]
[394691211,1763899832259,-776.50278841,0.00015897,2]
[394691212,1763899832269,-776.50278841,0.00015897,2]
[394691213,1763899832278,-776.50278841,0.00015897,2]
[394691214,1763899832287,-776.50278841,0.00015897,2]
[394691215,1763899832296,-776.50278841,0.00015897,2]
[394691216,1763899832305,-776.50278841,0.00015897,2]
[394691217,1763899832315,-776.50278841,0.00015897,2]
[394691218,1763899832325,-776.50278841,0.00015897,2]
[394691219,1763899832335,-776.50278841,0.00015897,2]
[394691220,1763899832356,-776.50278841,0.00015897,2]
[394691221,1763899832367,-776.50278841,0.00015897,2]
[394691222,1763899832378,-776.50278841,0.00015897,2]
[394691223,1763899832387,-776.50278841,0.00015897,2]
[394691224,1763899832399,-776.50278841,0.00015897,2]
[394691225,1763899832410,-776.50278841,0.00015897,2]
[394691226,1763899832420,-776.50278841,0.00015897,2]
[394691227,1763899832430,-776.50278841,0.00015897,2]
[394691228,1763899832440,-776.50278841,0.00015897,2]
[394691229,1763899832449,-776.50278841,0.00015897,2]
[394691230,1763899832459,-776.50278841,0.00015897,2]
[394691231,1763899832468,-776.50278841,0.00015897,2]
[394691232,1763899832477,-776.50278841,0.00015897,2]
[394691233,1763899832487,-776.50278841,0.00015897,2]
[394691234,1763899832496,-776.50278841,0.00015897,2]
[394691235,1763899832506,-776.50278841,0.00015897,2]
[394691236,1763899832515,-776.50278841,0.00015897,2]
[394691237,1763899832525,-776.50278841,0.00015897,2]
[394691238,1763899832534,-776.50278841,0.00015897,2]
[394691239,1763899832543,-776.50278841,0.00015897,2]
[394691240,1763899832553,-776.50278841,0.00015897,2]
[394691241,1763899832564,-776.50278841,0.00015897,2]
[394691242,1763899832573,-776.50278841,0.00015897,2]
[394691243,1763899832583,-776.50278841,0.00015897,2]
[394691244,1763899832593,-776.50278841,0.00015897,2]
[394691245,1763899832603,-776.50278841,0.00015897,2]
[394691246,1763899832612,-776.50278841,0.00015897,2]
[394691247,1763899832621,-776.50278841,0.00015897,2]
[394691248,1763899832631,-776.50278841,0.00015897,2]
[394691249,1763899832640,-776.50278841,0.00015897,2]
[394691250,1763899832650,-776.50278841,0.00015897,2]
[394691251,1763899832660,-776.50278841,0.00015897,2]
[394691252,1763899832669,-776.50278841,0.00015897,2]
[394691253,1763899832679,-776.50278841,0.00015897,2]
[394691254,1763899832689,-754.76071034,0.00015897,2]
[394691255,1763899832698,-754.76071034,0.00015897,2]
[394691256,1763899832712,-754.76071034,0.00015897,2]
[394691257,1763899832722,-754.76071034,0.00015897,2]
[394691258,1763899832732,-500.0,0.00015897,2]
[394691259,1763899832741,-754.76071034,0.00015897,2]
[394691260,1763899832751,-500.0,0.00015897,2]
[394691261,1763899832761,-754.76071034,0.00015897,2]
[394691262,1763899832770,-754.76071034,0.00015897,2]
[394691263,1763899832780,-450.5612801,0.00015897,2]
[394691264,1763899832790,-754.76071034,0.00015897,2]
[394691265,1763899832799,-754.76071034,0.00015897,2]
[394691266,1763899832809,-754.76071034,0.00015897,2]
[394691267,1763899832819,-754.76071034,0.00015897,2]
[394691268,1763899832829,-754.76071034,0.00015897,2]
[394691269,1763899832839,-754.76071034,0.00015897,2]
[394691270,1763899832848,-754.76071034,0.00015897,2]
[394691271,1763899832858,-754.76071034,0.00015897,2]
[394691272,1763899832867,-754.76071034,0.00015897,2]
[394691273,1763899832877,-754.76071034,0.00015897,2]
[394691274,1763899832887,-754.76071034,0.00015897,2]
[394691275,1763899832900,-754.76071034,0.00015897,2]
[394691276,1763899832910,-754.76071034,0.00015897,2]
[394691277,1763899832920,-754.76071034,0.00015897,2]
[394691278,1763899832930,-754.76071034,0.00015897,2]
[394691279,1763899832940,-754.76071034,0.00015897,2]
[394691280,1763899832949,-754.76071034,0.00015897,2]
[394691281,1763899832959,-754.76071026,0.00015897,2]
[394691282,1763899832969,-7694.66,0.00015898,2]
[394691283,1763899832979,-150.99,0.00015898,2]
[394691284,1763899832989,-1537.8,0.00015898,2]
[394691285,1763899832999,-2994.48,0.00015898,2]
[394691286,1763899833009,-500.0,0.00015898,2]
[394691287,1763899833019,-500.0,0.00015898,2]
[394691288,1763899833029,-500.0,0.00015898,2]
[394691289,1763899833038,-500.0,0.00015898,2]
[394691290,1763899833048,-500.0,0.00015898,2]
[394691291,1763899833059,-500.0,0.00015898,2]
[394691292,1763899833069,-500.0,0.00015898,2]
[394691293,1763899833079,-500.0,0.00015898,2]
[394691294,1763899833093,-500.0,0.00015898,2]
[394691295,1763899833104,-500.0,0.00015898,2]
[394691296,1763899833114,-3190.39676671,0.00015898,2]
[394691308,1763899833736,-1254.41808677,0.00015898,2]
[394691309,1763899833865,-3317.75206066,0.00015898,2]
[394691329,1763899837776,-505.6086,0.00015153,2]
[394691330,1763899837787,-2237.42308586,0.00015898,2]
[394691331,1763899837796,-1525.07,0.00015898,2]
[394691332,1763899837805,-999.99,0.00015898,2]
[394691333,1763899837816,-500.0,0.00015898,2]
[394691334,1763899837827,-588.47923029,0.00015898,2]
[394691336,1763899837836,-500.0,0.00015898,2]
[394691337,1763899837846,-500.0,0.00015898,2]
[394691338,1763899837855,-500.0,0.00015898,2]
[394691339,1763899837864,-500.0,0.00015898,2]
[394691340,1763899837873,-739.84,0.00015898,2]
[394691341,1763899837882,-500.0,0.00015898,2]
[394691342,1763899837892,-500.0,0.00015898,2]
[394691343,1763899837901,-634.89786605,0.00015898,2]
[394691344,1763899837911,-500.0,0.00015898,2]
[394691345,1763899837920,-417.18080714,0.00015898,2]
[394691346,1763899837929,-428.02188527,0.00015898,2]
[394691347,1763899837940,-500.0,0.00015898,2]
[394691348,1763899837950,-500.0,0.00015898,2]
[394691350,1763899837959,-500.0,0.00015898,2]
[394691352,1763899837968,-170.54211254,0.00015898,2]
[394691354,1763899837978,-716.4746,0.00015899,2]
[394691355,1763899837987,-23353.1967,0.00015899,2]
[394691356,1763899837996,-333.26794386,0.000159,2]
[394691358,1763899838005,-500.0,0.00015999,2]
[394691359,1763899838015,-500.0,0.00015999,2]
[394691360,1763899838024,-500.0,0.00015999,2]
[394691361,1763899838034,-500.0,0.00015999,2]
[394691362,1763899838043,-216.32674802,0.00015999,2]
[394691363,1763899838053,-500.0,0.00015999,2]
[394691364,1763899838062,-500.0,0.00015999,2]
[394691365,1763899838072,-500.0,0.00015999,2]
[394691366,1763899838082,-500.0,0.00015999,2]
[394691367,1763899838091,-500.0,0.00015999,2]
[394691368,1763899838101,-500.0,0.00015999,2]
[394691369,1763899838110,-500.0,0.00015999,2]
[394691370,1763899838119,-500.0,0.00015999,2]
[394691371,1763899838128,-500.0,0.00015999,2]
[394691372,1763899838137,-500.0,0.00015999,2]
[394691373,1763899838148,-500.0,0.00015999,2]
[394691374,1763899838157,-150.0,0.00016137,2]
[394691375,1763899838166,-150.0,0.00016137,2]
[394691376,1763899838176,-150.0,0.00016137,2]
[394691377,1763899838186,-174.02107183,0.00016149,2]
[394691378,1763899838195,-620.0,0.00016149,2]
[394691379,1763899838206,-500.0,0.00016149,2]
[394691380,1763899838215,-500.0,0.00016149,2]
[394691381,1763899838224,-500.0,0.00016149,2]
[394691382,1763899838234,-500.0,0.00016149,2]
[394691383,1763899838243,-500.0,0.00016149,2]
[394691384,1763899838258,-574.12855637,0.00016149,2]
[394691385,1763899838267,-500.0,0.00016149,2]
[394691386,1763899838276,-500.0,0.00016149,2]
[394691387,1763899838285,-500.0,0.00016149,2]
[394691388,1763899838294,-500.0,0.00016149,2]
[394691389,1763899838303,-500.0,0.00016149,2]
[394691390,1763899838312,-500.0,0.00016149,2]
[394691391,1763899838323,-739.84,0.00016172,2]
[394691392,1763899838334,-2500.0,0.00016198,2]
[394691393,1763899838344,-2500.0,0.00016198,2]
[394691394,1763899838354,-256.02,0.00016204,2]
[394691395,1763899838363,-168.0,0.00016269,2]
[394691396,1763899838373,-999.0,0.0001631,3]
[394691397,1763899838382,-500.0,0.00016358,2]
[394691398,1763899838391,-167.83,0.0001636,2]
[394691399,1763899838401,-150.0,0.0001642,2]
[394691400,1763899838411,-168.0,0.00016434,2]
[394691401,1763899838420,-499.0,0.00016435,2]
[394691402,1763899838430,-500.0,0.00016438,2]
[394691403,1763899838439,-603.19757846,0.00016438,2]
[394691404,1763899838448,-500.0,0.00016438,2]
[394691405,1763899838458,-500.0,0.00016438,2]
[394691406,1763899838467,-516.10044595,0.00016438,2]
[394691407,1763899838476,-500.0,0.00016438,2]
[394691408,1763899838486,-500.0,0.00016438,2]
[394691409,1763899838495,-500.0,0.00016438,2]
[394691410,1763899838504,-500.0,0.00016438,2]
[394691411,1763899838514,-500.0,0.00016438,2]
[394691412,1763899838523,-500.0,0.00016438,2]
[394691413,1763899838532,-500.0,0.00016438,2]
[394691414,1763899838542,-500.0,0.00016438,2]
[394691415,1763899838551,-6790.23,0.00016438,2]
[394691416,1763899838560,-500.0,0.00016438,2]
[394691417,1763899838570,-739.84,0.00016446,2]
[394691418,1763899838578,-499.0,0.00016451,2]
[394691419,1763899838588,-351.24,0.00016458,2]
[394691420,1763899838597,-499.0,0.00016518,2]
[394691421,1763899838606,-288.45510761,0.00016533,4]
[394691422,1763899838615,-168.0,0.00016563,2]
[394691423,1763899838625,-499.0,0.00016588,2]
[394691424,1763899838634,-168.0,0.00016591,2]
[394691425,1763899838644,-157.8088648,0.00016611,2]
[394691426,1763899838653,-301.82596373,0.00016611,2]
[394691427,1763899838662,-573.7346,0.00016685,2]
[394691428,1763899838671,-250.0,0.00016707,2]
[394691429,1763899838680,-739.84,0.0001672,2]
[394691430,1763899838689,-420.0,0.00016726,2]
[394691431,1763899838698,-420.0,0.00016726,2]
[394691432,1763899838707,-499.0,0.00016739,2]
[394691433,1763899838716,-499.0,0.00016771,2]
[394691434,1763899838725,-1680.0,0.0001681,2]
[394691435,1763899838735,-300.0,0.00016816,2]
[394691436,1763899838744,-300.0,0.00016816,2]
[394691437,1763899838753,-233.62836991,0.00016816,2]
[394691438,1763899838762,-166.02213,0.0001683,2]
[394691439,1763899838771,-201.25,0.00016841,2]
[394691440,1763899838780,-499.0,0.00016845,2]
[394691441,1763899838789,-499.0,0.00016875,2]
[394691442,1763899838799,-304.67224215,0.000169,2]
[394691443,1763899838808,-1419.99979582,0.00016943,2]
[394691444,1763899838817,-500.0,0.00016973,2]
[394691445,1763899838826,-500.0,0.00016973,2]
[394691446,1763899838835,-500.0,0.00016973,2]
[394691447,1763899838845,-500.0,0.00016973,2]
[394691448,1763899838854,-326.52315615,0.00016973,2]
[394691449,1763899838863,-500.0,0.00016973,2]
[394691450,1763899838872,-501.18154041,0.00016973,2]
[394691451,1763899839001,-500.0,0.00016973,2]
[394691452,1763899839011,-500.0,0.00016973,2]
[394691453,1763899839020,-500.0,0.00016973,2]
[394691454,1763899839030,-457.63452341,0.00016973,2]
[394691455,1763899839040,-150.0,0.00016986,2]
[394691456,1763899839049,-150.0,0.00016986,2]
[394691457,1763899839058,-150.0,0.00016986,2]
[394691458,1763899839067,-150.0,0.00016986,2]
[394691459,1763899839075,-150.0,0.00016986,2]
[394691460,1763899839084,-150.0,0.00016986,2]
[394691461,1763899839093,-150.0,0.00016986,2]
[394691462,1763899839102,-150.0,0.00016986,2]
[394691463,1763899839111,-739.84,0.00016994,2]
[394691464,1763899839121,-547.75274217,0.00016999,2]
[394691465,1763899839130,-500.0,0.00016999,2]
[394691466,1763899839140,-245.75646741,0.00016999,2]
[394691467,1763899839149,-500.0,0.00016999,2]
[394691468,1763899839159,-500.0,0.00016999,2]
[394691469,1763899839169,-500.0,0.00016999,2]
[394691470,1763899839179,-293.69938487,0.00016999,2]
[394691471,1763899839189,-275.84527373,0.00016999,2]
[394691472,1763899839198,-152.19317623,0.00016999,2]
[394691473,1763899839208,-150.0,0.00016999,2]
[394691474,1763899839218,-150.0,0.00016999,2]
[394691475,1763899839228,-150.0,0.00016999,2]
[394691476,1763899839237,-150.0,0.00016999,2]
[394691477,1763899839247,-150.0,0.00016999,2]
[394691478,1763899839256,-250.0,0.00016999,2]
[394691479,1763899839265,-150.0,0.00016999,2]
[394691480,1763899839274,-500.0,0.00016999,2]
[394691481,1763899839283,-500.0,0.00016999,2]
[394691482,1763899839292,-150.0,0.00016999,2]
[394691483,1763899839301,-150.0,0.00016999,2]
[394691484,1763899839311,-150.0,0.00016999,2]
[394691485,1763899839320,-150.0,0.00016999,2]
[394691486,1763899839334,-150.0,0.00016999,2]
[394691487,1763899839344,-150.0,0.00016999,2]
[394691488,1763899839353,-500.0,0.00016999,2]
[394691489,1763899839363,-500.0,0.00016999,2]
[394691490,1763899839371,-500.0,0.00016999,2]
[394691491,1763899839379,-500.0,0.00016999,2]
[394691492,1763899839389,-500.0,0.00016999,2]
[394691493,1763899839398,-500.0,0.00016999,2]
[394691494,1763899839409,-205.31234714,0.00016999,2]
[394691495,1763899839418,-150.0,0.00016999,2]
[394691496,1763899839428,-182.73509637,0.00016999,2]
[394691497,1763899839438,-500.0,0.00016999,2]
[394691498,1763899839447,-268.66984669,0.00016999,2]
[394691499,1763899839455,-848.0,0.00017,2]
[394691500,1763899839464,-1259.9798499,0.00017,2]
[394691501,1763899839473,-250.0,0.00017,2]
[394691502,1763899839482,-2000.0,0.00017,2]
[394691503,1763899839491,-200.0,0.00017,2]
[394691504,1763899839500,-602260.8137175,0.00017,2]
[394691506,1763899839849,-150.0,0.00016999,2]
[394691507,1763899839867,-95668.75780336,0.00017,2]
[394691508,1763899839895,-1419.99979582,0.00017,2]
[394691509,1763899839919,-865.635,0.00017,2]
[394691510,1763899839936,-406.998006,0.00017,2]
[394691516,1763899993451,5315.67,7.557e-05,2]
[394691517,1763899993618,5315.67,7.955e-05,2]
[394691518,1763899993813,5315.67,8.352e-05,2]
[394691519,1763899994042,5315.67,8.75e-05,2]
[394691520,1763899994258,5315.67,9.148e-05,2]
[394691521,1763899994849,5315.67,9.545e-05,2]
[394691522,1763899995058,5315.67,9.943e-05,2]
[394691523,1763899995249,5315.67,0.00010341,2]
[394691524,1763899995452,5315.67,0.00010739,2]
[394691525,1763899995638,5315.67,0.00011136,2]
[394691526,1763899996119,5315.67,0.00011534,2]
[394691527,1763899996245,3224.86400182,0.00011932,2]
[394691528,1763899996277,2090.80599818,0.00011932,2]
[394691529,1763899996752,5315.67,0.0001233,2]
[394691530,1763899996940,5315.67,0.00012727,2]
[394691531,1763899997133,5315.67,0.00013125,2]
[394691532,1763899997338,5315.67,0.00013523,2]
[394691533,1763899997543,5315.67,0.0001392,2]
[394691534,1763899997733,5315.67,0.00014318,2]
[394691535,1763899997922,5315.67,0.00014716,2]
[394691539,1763900168072,1812.16861,7.945e-05,2]
[394691541,1763900300116,200.4318045,0.00014642,2]
[394691542,1763900631883,500.0,0.00016,4]
[394691544,1763900719477,2221.25394369,9e-05,2]
[394691545,1763900719530,5281.25269515,9e-05,2]
[394691546,1763900725123,1021.30797981,0.000108,2]
[394691586,1763900763709,1289.33198746,0.00011,2]
[394691601,1763900823598,7151.48479583,0.00015,2]
[394691603,1763900884197,7666.10797474,0.0001439,2]
[394691604,1763900887071,364.33952059,0.000135,2]
[394691605,1763900887479,305.43406415,0.000125,2]
[394691606,1763900894482,1919.52069926,0.0001,2]
[394691607,1763900897535,20150.28719683,0.00015,2]
[394691608,1763900905551,2717.94452844,0.0001,2]
[394691609,1763900915545,7282.06547156,0.0001,2]
[394691610,1763900915569,10000.01,0.0001,2]
[394691611,1763900915591,2078.70186537,0.0001,2]
[394691718,1763901031878,-318.10448703,0.00014998,2]
[394691719,1763901031890,-881.89551297,0.00014998,2]
[394691720,1763901031898,-759.60447903,0.00014999,2]
[394691721,1763901031910,-3141.82439072,0.00014999,2]
[394691722,1763901031919,-300.0,0.00014999,2]
[394691723,1763901031928,-300.0,0.00014999,2]
[394691724,1763901031937,-150.0,0.00014999,2]
[394691725,1763901031947,-1097.70516362,0.00015,2]
[394691726,1763901031956,-2070.47044566,0.00015,2]
[394691727,1763901031967,-899.86519061,0.00015,2]
[394691728,1763901031987,-41428.78290757,0.00015,2]
[394691729,1763901031998,-641.28142672,0.00015,2]
[394691730,1763901032009,-292.71927641,0.00015,2]
[394691731,1763901032024,-1195.98280455,0.00015,2]
[394691732,1763901032035,-522.04790989,0.00015,2]
[394691733,1763901032046,-10435.20382824,0.00015,2]
[394691734,1763901032056,-1808.47648197,0.00015114,2]
[394691735,1763901032070,-864.08449454,0.00015114,2]
[394691736,1763901032081,-418.24853192,0.00015114,2]
[394692242,1763901037806,-2224.86049157,0.00015114,2]
[394692245,1763901037816,-237.11939757,0.00015183,2]
[394692247,1763901037826,-152.89,0.00015287,2]
[394692249,1763901037836,-189.04364571,0.00015287,2]
[394692251,1763901037847,-1010.95635429,0.00015287,2]
[394692253,1763901037857,-150.0,0.00015288,2]
[394692255,1763901037867,-150.0,0.00015288,2]
[394692257,1763901037881,-150.0,0.00015288,2]
[394692259,1763901037890,-150.0,0.00015288,2]
[394692261,1763901037900,-150.0,0.00015288,2]
[394692264,1763901037909,-150.0,0.00015288,2]
[394692266,1763901037919,-150.0,0.00015288,2]
[394692268,1763901037929,-150.0,0.00015288,2]
[394692270,1763901037939,-150.0,0.00015288,2]
[394692277,1763901038132,-1093.92783441,0.000153,2]
[394692280,1763901038152,-2018.67825764,0.000154,2]
[394692282,1763901038162,-129.95575681,0.000154,2]
[394692286,1763901038190,-374.1245371,0.000154,2]
[394692288,1763901038200,-237.11939756,0.00015415,2]
[394692290,1763901038209,-2128.03220053,0.00015546,2]
[394692293,1763901038225,-7880.52960002,0.00015546,2]
[394692296,1763901038246,-576894.14009945,0.00015546,2]
[394692298,1763901038255,-500.0,0.00015573,2]
[394692300,1763901038264,-160.91722958,0.00015573,2]
[394692302,1763901038274,-245.21,0.00015573,2]
[394692304,1763901038283,-3262.799,0.00015597,2]
[394692306,1763901038292,-179.009,0.00015597,2]
[394692308,1763901038301,-500.0,0.00015598,2]
[394692310,1763901038311,-500.0,0.00015598,2]
[394692312,1763901038320,-500.0,0.00015598,2]
[394692314,1763901038331,-500.0,0.00015598,2]
[394692316,1763901038341,-500.0,0.00015598,2]
[394692318,1763901038351,-500.0,0.00015598,2]
[394692320,1763901038361,-500.0,0.00015598,2]
[394692322,1763901038371,-500.0,0.00015598,2]
[394692324,1763901038380,-500.0,0.00015598,2]
[394692326,1763901038390,-547.75274217,0.00015598,2]
[394692328,1763901038399,-571.5401194,0.00015598,2]
[394692330,1763901038408,-500.0,0.00015598,2]
[394692332,1763901038419,-245.75646741,0.00015598,2]
[394692334,1763901038429,-500.0,0.00015598,2]
[394692336,1763901038438,-500.0,0.00015598,2]
[394692338,1763901038447,-500.0,0.00015598,2]
[394692340,1763901038457,-14094.16287396,0.00015646,2]
[394692342,1763901038470,-237.11939756,0.00015646,2]
[394692344,1763901038479,-521.39,0.00015746,2]
[394692347,1763901038489,-9883.75,0.00015746,2]
[394692349,1763901038499,-1000.0,0.00015797,2]
[394692350,1763901038508,-11307.22827389,0.00015797,2]
[394692353,1763901038519,-5963.00562611,0.00015797,2]
[394692355,1763901038528,-500.0,0.00015896,2]
[394692357,1763901038538,-500.0,0.00015898,2]
[394692359,1763901038548,-11810.21125177,0.00016049,2]
[394692361,1763901038558,-2958.03312211,0.00016116,2]
[394692364,1763901038571,-335.724,0.00016116,2]
[394692531,1763901040126,-1302.95415223,0.00016116,2]
[394692534,1763901040140,-4657.96872566,0.00016116,2]
[394692536,1763901040151,-299.99,0.00016116,4]
[394692538,1763901040160,-1189.9,0.00016116,2]
[394692540,1763901040170,-4866.76,0.00016116,2]
[394692542,1763901040180,-255.0,0.00016124,2]
[394692544,1763901040189,-578.20924308,0.00016149,2]
[394692546,1763901040199,-500.0,0.00016149,2]
[394692548,1763901040209,-500.0,0.00016149,2]
[394692550,1763901040218,-500.0,0.00016149,2]
[394692552,1763901040228,-500.0,0.00016149,2]
[394692554,1763901040239,-500.0,0.00016149,2]
[394692556,1763901040249,-500.0,0.00016149,2]
[394692558,1763901040259,-500.0,0.00016149,2]
[394692560,1763901040268,-500.0,0.00016149,2]
[394692562,1763901040278,-500.0,0.00016149,2]
[394692563,1763901040287,-500.0,0.00016149,2]
[394692564,1763901040297,-500.0,0.00016149,2]
[394692565,1763901040307,-152.89,0.00016379,2]
[394692566,1763901040318,-420.0,0.00016416,2]
[394692567,1763901040327,-388.0,0.00016416,2]
[394692568,1763901040336,-1680.0,0.00016498,2]
[394692569,1763901040346,-4037.55,0.00016607,2]
[394692570,1763901040355,-195.0,0.00016625,2]
[394692571,1763901040364,-250.0,0.00016625,2]
[394692572,1763901040373,-1419.99979582,0.00016732,2]
[394692573,1763901040382,-166.02213,0.0001683,2]
[394692574,1763901040391,-421.17280734,0.000169,2]
[394692575,1763901040400,-914.01672645,0.000169,2]
[394692576,1763901040410,-169.66689837,0.000169,2]
[394692577,1763901040419,-165.78798586,0.00016986,2]
[394692578,1763901040428,-150.0,0.00016986,2]
[394692579,1763901040437,-500.0,0.00016999,2]
[394692580,1763901040446,-293.69938487,0.00016999,2]
[394692581,1763901040456,-275.84527373,0.00016999,2]
[394692582,1763901040465,-152.19317623,0.00016999,2]
[394692583,1763901040474,-150.0,0.00016999,2]
[394692584,1763901040484,-150.0,0.00016999,2]
[394692585,1763901040493,-150.0,0.00016999,2]
[394692586,1763901040502,-150.0,0.00016999,2]
[394692587,1763901040511,-150.0,0.00016999,2]
[394692588,1763901040520,-150.0,0.00016999,2]
[394692589,1763901040529,-150.0,0.00016999,2]
[394692590,1763901040538,-150.0,0.00016999,2]
[394692591,1763901040547,-500.0,0.00016999,2]
[394692592,1763901040556,-500.0,0.00016999,2]
[394692593,1763901040565,-205.31234714,0.00016999,2]
[394692594,1763901040574,-150.0,0.00016999,2]
[394692595,1763901040583,-250.0,0.00016999,2]
[394692596,1763901040592,-150.0,0.00016999,2]
[394692597,1763901040601,-405.20184545,0.00016999,2]
[394692598,1763901040613,-94.79815455,0.00016999,2]
[394692599,1763901040622,-500.0,0.00016999,2]
[394692600,1763901040631,-405.20184545,0.00016999,2]
[394692601,1763901042270,-94.79815455,0.00016999,2]
[394692602,1763901042280,-150.0,0.00016999,2]
[394692603,1763901042289,-182.73509637,0.00016999,2]
[394692604,1763901042298,-500.0,0.00016999,2]
[394692605,1763901042308,-268.66984669,0.00016999,2]
[394692606,1763901042317,-455.91084205,0.00016999,2]
[394692607,1763901042327,-197.51413094,0.00016999,2]
[394692608,1763901042336,-500.0,0.00016999,2]
[394692609,1763901042345,-189.7136269,0.00016999,2]
[394692610,1763901042355,-161.17347557,0.00016999,2]
[394692611,1763901042365,-500.0,0.00016999,2]
[394692612,1763901042374,-241.06889963,0.00016999,2]